[Event "Titled Tuesday Blitz May 31 Late 2022"]
[White "Preotu, Razvan"]
[Black "Prabhu, Naveen"]
[WhiteFideId "2613280"]
[BlackFideId "30939372"]
[WhiteElo "2407"]
[BlackElo "2413"]
[Result "1-0"]
[Round "02"]
[TimeControl "180+1"]
[Date "2022.06.01"]
[WhiteClock "0:00:06"]
[BlackClock "0:00:14"]

1. e4 {[%clk 0:03:00]}  e6 {[%clk 0:02:56]} 2. d4 {[%clk 0:03:00]}  d5 {[%clk 0:02:57]} 3. Nc3 {[%clk 0:03:00]}  Nf6 {[%clk 0:02:47]} 4. e5 {[%clk 0:03:00]}  Nfd7 {[%clk 0:02:47]} 5. f4 {[%clk 0:03:01]}  c5 {[%clk 0:02:48]} 6. Nf3 {[%clk 0:03:01]}  Nc6 {[%clk 0:02:49]} 7. Be3 {[%clk 0:03:02]}  a6 {[%clk 0:02:49]} 8. Qd2 {[%clk 0:02:55]}  b5 {[%clk 0:02:49]} 9. Be2 {[%clk 0:02:55]}  Qb6 {[%clk 0:02:47]} 10. a3 {[%clk 0:02:55]}  cxd4 {[%clk 0:02:45]} 11. Nxd4 {[%clk 0:02:55]}  Bc5 {[%clk 0:02:46]} 12. O-O-O {[%clk 0:02:55]}  Bb7 {[%clk 0:02:44]} 13. Rhe1 {[%clk 0:02:47]}  O-O {[%clk 0:02:35]} 14. Bf3 {[%clk 0:02:30]}  Rfc8 {[%clk 0:02:34]} 15. g4 {[%clk 0:01:50]}  Nxd4 {[%clk 0:02:28]} 16. Bxd4 {[%clk 0:01:51]}  Bxd4 {[%clk 0:02:29]} 17. Qxd4 {[%clk 0:01:51]}  Rc4 {[%clk 0:02:29]} 18. Qxb6 {[%clk 0:01:50]}  Nxb6 {[%clk 0:02:29]} 19. Ne2 {[%clk 0:01:48]}  Rac8 {[%clk 0:02:28]} 20. Rd2 {[%clk 0:01:48]}  b4 {[%clk 0:02:12]} 21. b3 {[%clk 0:01:42]}  R4c5 {[%clk 0:01:49]} 22. axb4 {[%clk 0:01:37]}  Rb5 {[%clk 0:01:49]} 23. Rd4 {[%clk 0:01:37]}  a5 {[%clk 0:01:43]} 24. bxa5 {[%clk 0:01:36]}  Rxa5 {[%clk 0:01:44]} 25. Kb2 {[%clk 0:01:35]}  Ba6 {[%clk 0:01:44]} 26. Rb4 {[%clk 0:01:27]}  Nd7 {[%clk 0:01:40]} 27. Nd4 {[%clk 0:01:26]}  Nc5 {[%clk 0:01:35]} 28. Ra1 {[%clk 0:01:24]}  Rxa1 {[%clk 0:01:35]} 29. Kxa1 {[%clk 0:01:25]}  Bf1 {[%clk 0:01:31]} 30. Kb2 {[%clk 0:01:23]}  h6 {[%clk 0:01:28]} 31. Nb5 {[%clk 0:01:08]}  Rb8 {[%clk 0:01:20]} 32. c4 {[%clk 0:01:01]}  Nd3+ {[%clk 0:01:17]} 33. Kc3 {[%clk 0:01:02]}  Nxb4 {[%clk 0:01:17]} 34. Kxb4 {[%clk 0:01:03]}  d4 {[%clk 0:01:14]} 35. Be4 {[%clk 0:00:53]}  Kf8 {[%clk 0:01:04]} 36. Ka3 {[%clk 0:00:42]}  Bh3 {[%clk 0:00:57]} 37. Nxd4 {[%clk 0:00:41]}  Bxg4 {[%clk 0:00:57]} 38. c5 {[%clk 0:00:39]}  Ke8 {[%clk 0:00:46]} 39. c6 {[%clk 0:00:31]}  Kd8 {[%clk 0:00:43]} 40. b4 {[%clk 0:00:31]}  Kc7 {[%clk 0:00:41]} 41. b5 {[%clk 0:00:26]}  Rd8 {[%clk 0:00:38]} 42. Nc2 {[%clk 0:00:22]}  Kb6 {[%clk 0:00:36]} 43. Kb4 {[%clk 0:00:22]}  Be2 {[%clk 0:00:35]} 44. c7 {[%clk 0:00:13]}  Kxc7 {[%clk 0:00:34]} 45. Kc5 {[%clk 0:00:14]}  Bd3 {[%clk 0:00:25]} 46. b6+ {[%clk 0:00:13]}  Kb8 {[%clk 0:00:25]} 47. Bxd3 {[%clk 0:00:11]}  Rxd3 {[%clk 0:00:25]} 48. Nb4 {[%clk 0:00:09]}  Rc3+ {[%clk 0:00:19]} 49. Kd6 {[%clk 0:00:08]}  Rc4 {[%clk 0:00:19]} 50. Nc6+ {[%clk 0:00:07]}  Kb7 {[%clk 0:00:16]} 51. Na5+ {[%clk 0:00:07]}  Kxb6 {[%clk 0:00:14]} 52. Nxc4+ {[%clk 0:00:08]}  Kb5 {[%clk 0:00:15]} 53. Ke7 {[%clk 0:00:04]}  Kxc4 {[%clk 0:00:12]} 54. Kxf7 {[%clk 0:00:05]}  Kd5 {[%clk 0:00:09]} 55. Kxg7 {[%clk 0:00:05]}  h5 {[%clk 0:00:10]} 56. Kf6 {[%clk 0:00:05]}  Ke4 {[%clk 0:00:08]} 57. Kxe6 {[%clk 0:00:05]}  Kxf4 {[%clk 0:00:09]} 58. Kf6 {[%clk 0:00:06]}  Kf3 {[%clk 0:00:10]} 59. e6 {[%clk 0:00:07]}  Kg2 {[%clk 0:00:10]} 60. e7 {[%clk 0:00:08]}  Kxh2 {[%clk 0:00:11]} 61. e8=Q {[%clk 0:00:07]}  h4 {[%clk 0:00:12]} 62. Kg5 {[%clk 0:00:06]}  h3 {[%clk 0:00:13]} 63. Kg4 {[%clk 0:00:07]}  Kh1 {[%clk 0:00:13]} 64. Kxh3 {[%clk 0:00:06]}  Kg1 {[%clk 0:00:14]} 65. Qe1# {[%clk 0:00:06]} 1-0


[Site "https://www.chess.com"]

[Event "Titled Tuesday Blitz May 31 Late 2022"]
[White "Rosen, Eric"]
[Black "Melikhov, Evgeny V."]
[WhiteFideId "2032562"]
[BlackFideId "4122046"]
[WhiteElo "2362"]
[BlackElo "1931"]
[Result "1-0"]
[Round "02"]
[TimeControl "180+1"]
[Date "2022.06.01"]
[WhiteClock "0:00:07"]
[BlackClock "0:00:06"]

1. d4 {[%clk 0:02:52]}  Nf6 {[%clk 0:02:59]} 2. Bf4 {[%clk 0:02:51]}  d5 {[%clk 0:02:59]} 3. e3 {[%clk 0:02:51]}  c5 {[%clk 0:02:59]} 4. Nf3 {[%clk 0:02:49]}  Nc6 {[%clk 0:02:58]} 5. Nbd2 {[%clk 0:02:50]}  cxd4 {[%clk 0:02:56]} 6. exd4 {[%clk 0:02:50]}  Bf5 {[%clk 0:02:54]} 7. c3 {[%clk 0:02:48]}  e6 {[%clk 0:02:53]} 8. Be2 {[%clk 0:02:48]}  Bd6 {[%clk 0:02:52]} 9. Bxd6 {[%clk 0:02:48]}  Qxd6 {[%clk 0:02:52]} 10. O-O {[%clk 0:02:49]}  O-O {[%clk 0:02:51]} 11. a4 {[%clk 0:02:50]}  Qc7 {[%clk 0:02:39]} 12. Re1 {[%clk 0:02:49]}  a6 {[%clk 0:02:37]} 13. b4 {[%clk 0:02:06]}  Ne4 {[%clk 0:02:27]} 14. Nxe4 {[%clk 0:01:58]}  Bxe4 {[%clk 0:02:27]} 15. Nd2 {[%clk 0:01:59]}  Bg6 {[%clk 0:02:21]} 16. Nb3 {[%clk 0:01:48]}  Ne7 {[%clk 0:02:15]} 17. Rc1 {[%clk 0:01:45]}  Nf5 {[%clk 0:02:07]} 18. a5 {[%clk 0:01:42]}  Nd6 {[%clk 0:02:04]} 19. Nc5 {[%clk 0:01:42]}  Rfd8 {[%clk 0:01:49]} 20. Bd3 {[%clk 0:01:41]}  Bxd3 {[%clk 0:01:48]} 21. Qxd3 {[%clk 0:01:41]}  Nc4 {[%clk 0:01:40]} 22. Re2 {[%clk 0:01:29]}  b6 {[%clk 0:01:39]} 23. axb6 {[%clk 0:01:29]}  Qxb6 {[%clk 0:01:39]} 24. Ra2 {[%clk 0:01:25]}  a5 {[%clk 0:01:36]} 25. Rca1 {[%clk 0:01:20]}  Ra7 {[%clk 0:00:56]} 26. h4 {[%clk 0:00:46]}  Rda8 {[%clk 0:00:55]} 27. bxa5 {[%clk 0:00:24]}  Rxa5 {[%clk 0:00:54]} 28. Rxa5 {[%clk 0:00:25]}  Rxa5 {[%clk 0:00:54]} 29. Rb1 {[%clk 0:00:24]}  Rb5 {[%clk 0:00:49]} 30. Ra1 {[%clk 0:00:14]}  Ra5 {[%clk 0:00:47]} 31. Rb1 {[%clk 0:00:14]}  Rb5 {[%clk 0:00:47]} 32. Re1 {[%clk 0:00:15]}  h6 {[%clk 0:00:42]} 33. h5 {[%clk 0:00:15]}  Ra5 {[%clk 0:00:30]} 34. Rb1 {[%clk 0:00:14]}  Rb5 {[%clk 0:00:24]} 35. Ra1 {[%clk 0:00:15]}  Ra5 {[%clk 0:00:24]} 36. Rb1 {[%clk 0:00:16]}  Rb5 {[%clk 0:00:24]} 37. Re1 {[%clk 0:00:16]}  Ra5 {[%clk 0:00:24]} 38. Qg3 {[%clk 0:00:17]}  Qa7 {[%clk 0:00:21]} 39. Kh2 {[%clk 0:00:13]}  Ra1 {[%clk 0:00:17]} 40. Rxa1 {[%clk 0:00:12]}  Qxa1 {[%clk 0:00:16]} 41. Qb8+ {[%clk 0:00:13]}  Kh7 {[%clk 0:00:16]} 42. Qf8 {[%clk 0:00:12]}  Qxc3 {[%clk 0:00:14]} 43. Qxf7 {[%clk 0:00:09]}  Qxd4 {[%clk 0:00:14]} 44. Qg6+ {[%clk 0:00:08]}  Kg8 {[%clk 0:00:12]} 45. Qe8+ {[%clk 0:00:09]}  Kh7 {[%clk 0:00:12]} 46. Qg6+ {[%clk 0:00:10]}  Kg8 {[%clk 0:00:12]} 47. Nxe6 {[%clk 0:00:09]}  Qe5+ {[%clk 0:00:11]} 48. f4 {[%clk 0:00:06]}  Qf6 {[%clk 0:00:08]} 49. Qe8+ {[%clk 0:00:06]}  Kh7 {[%clk 0:00:08]} 50. Nf8+ {[%clk 0:00:07]}  Kg8 {[%clk 0:00:08]} 51. Ng6+ {[%clk 0:00:07]}  Kh7 {[%clk 0:00:06]} 52. Qh8# {[%clk 0:00:07]} 1-0


[Site "https://www.chess.com"]

[Event "Titled Tuesday Blitz May 31 Late 2022"]
[White "Salimova, Nurgyul"]
[Black "Dubov, Daniil"]
[WhiteFideId "2915138"]
[BlackFideId "24126055"]
[WhiteElo "2185"]
[BlackElo "2791"]
[Result "0-1"]
[Round "02"]
[TimeControl "180+1"]
[Date "2022.05.31"]
[WhiteClock "0:00:04"]
[BlackClock "0:00:27"]

1. d4 {[%clk 0:03:00]}  Nf6 {[%clk 0:02:59]} 2. Nf3 {[%clk 0:03:00]}  d5 {[%clk 0:02:59]} 3. c4 {[%clk 0:02:59]}  e6 {[%clk 0:02:57]} 4. g3 {[%clk 0:02:59]}  Be7 {[%clk 0:02:54]} 5. Bg2 {[%clk 0:02:58]}  O-O {[%clk 0:02:55]} 6. O-O {[%clk 0:02:58]}  dxc4 {[%clk 0:02:55]} 7. Qc2 {[%clk 0:02:57]}  b5 {[%clk 0:02:55]} 8. a4 {[%clk 0:02:56]}  b4 {[%clk 0:02:55]} 9. Nfd2 {[%clk 0:02:55]}  Nd5 {[%clk 0:02:55]} 10. Nxc4 {[%clk 0:02:50]}  c5 {[%clk 0:02:55]} 11. dxc5 {[%clk 0:02:47]}  Ba6 {[%clk 0:02:55]} 12. e4 {[%clk 0:02:43]}  Nf6 {[%clk 0:02:46]} 13. Be3 {[%clk 0:02:06]}  Nbd7 {[%clk 0:02:24]} 14. c6 {[%clk 0:02:05]}  Rc8 {[%clk 0:02:23]} 15. e5 {[%clk 0:01:44]}  Nd5 {[%clk 0:02:21]} 16. Bd4 {[%clk 0:00:45]}  Nb8 {[%clk 0:02:02]} 17. Nbd2 {[%clk 0:00:31]}  Nxc6 {[%clk 0:02:01]} 18. Qe4 {[%clk 0:00:26]}  Nxd4 {[%clk 0:01:27]} 19. Qxd4 {[%clk 0:00:26]}  Nb6 {[%clk 0:01:24]} 20. Qxd8 {[%clk 0:00:14]}  Rfxd8 {[%clk 0:01:06]} 21. b3 {[%clk 0:00:06]}  Nxc4 {[%clk 0:00:52]} 22. Nxc4 {[%clk 0:00:06]}  Bxc4 {[%clk 0:00:46]} 23. bxc4 {[%clk 0:00:07]}  Rxc4 {[%clk 0:00:44]} 24. Rfc1 {[%clk 0:00:08]}  Rdc8 {[%clk 0:00:38]} 25. Rxc4 {[%clk 0:00:06]}  Rxc4 {[%clk 0:00:38]} 26. Bf1 {[%clk 0:00:07]}  Rc2 {[%clk 0:00:35]} 27. Bd3 {[%clk 0:00:06]}  Rd2 {[%clk 0:00:35]} 28. Be4 {[%clk 0:00:06]}  Bc5 {[%clk 0:00:34]} 29. Rc1 {[%clk 0:00:05]}  Bxf2+ {[%clk 0:00:33]} 30. Kf1 {[%clk 0:00:05]}  g6 {[%clk 0:00:32]} 31. Rc2 {[%clk 0:00:03]}  Rxc2 {[%clk 0:00:32]} 32. Bxc2 {[%clk 0:00:04]}  Bd4 {[%clk 0:00:32]} 33. Ke2 {[%clk 0:00:04]}  Bxe5 {[%clk 0:00:32]} 34. a5 {[%clk 0:00:04]}  a6 {[%clk 0:00:31]} 35. Bd3 {[%clk 0:00:03]}  Bc7 {[%clk 0:00:31]} 36. Bxa6 {[%clk 0:00:03]}  Bxa5 {[%clk 0:00:32]} 37. Bc4 {[%clk 0:00:04]}  Bb6 {[%clk 0:00:32]} 38. Kf3 {[%clk 0:00:05]}  Kf8 {[%clk 0:00:31]} 39. h3 {[%clk 0:00:04]}  Ke7 {[%clk 0:00:30]} 40. g4 {[%clk 0:00:04]}  f5 {[%clk 0:00:26]} 41. gxf5 {[%clk 0:00:04]}  gxf5 {[%clk 0:00:27]} 0-1


[Site "https://www.chess.com"]

[Event "Titled Tuesday Blitz May 31 Late 2022"]
[White "Taboas Rodriguez, Daniel"]
[Black "Chigaev, Maksim"]
[WhiteFideId "2208466"]
[BlackFideId "4108116"]
[WhiteElo "2429"]
[BlackElo "2457"]
[Result "1-0"]
[Round "02"]
[TimeControl "180+1"]
[Date "2022.05.31"]
[WhiteClock "0:00:06"]
[BlackClock "0:00:04"]

1. d4 {[%clk 0:02:59]}  d5 {[%clk 0:02:57]} 2. Nf3 {[%clk 0:02:59]}  Nf6 {[%clk 0:02:57]} 3. c4 {[%clk 0:03:00]}  c6 {[%clk 0:02:56]} 4. cxd5 {[%clk 0:03:00]}  cxd5 {[%clk 0:02:56]} 5. Nc3 {[%clk 0:03:01]}  a6 {[%clk 0:02:54]} 6. Bf4 {[%clk 0:03:01]}  Nc6 {[%clk 0:02:53]} 7. Rc1 {[%clk 0:03:00]}  h6 {[%clk 0:02:49]} 8. e3 {[%clk 0:02:57]}  Bg4 {[%clk 0:02:49]} 9. Qb3 {[%clk 0:02:48]}  Na5 {[%clk 0:02:46]} 10. Qa4+ {[%clk 0:02:42]}  Bd7 {[%clk 0:02:37]} 11. Qd1 {[%clk 0:02:37]}  e6 {[%clk 0:02:36]} 12. Ne5 {[%clk 0:02:37]}  Be7 {[%clk 0:02:36]} 13. Bd3 {[%clk 0:02:37]}  Rc8 {[%clk 0:02:36]} 14. O-O {[%clk 0:02:36]}  O-O {[%clk 0:02:36]} 15. Qf3 {[%clk 0:02:37]}  Nc6 {[%clk 0:02:34]} 16. Qh3 {[%clk 0:02:32]}  Nxe5 {[%clk 0:02:27]} 17. dxe5 {[%clk 0:02:26]}  Nh7 {[%clk 0:02:22]} 18. Bxh6 {[%clk 0:02:03]}  g6 {[%clk 0:01:58]} 19. Bxf8 {[%clk 0:01:59]}  Bxf8 {[%clk 0:01:59]} 20. Ne2 {[%clk 0:01:51]}  Rxc1 {[%clk 0:01:55]} 21. Rxc1 {[%clk 0:01:52]}  Qa5 {[%clk 0:01:52]} 22. Nc3 {[%clk 0:01:46]}  Bg7 {[%clk 0:01:49]} 23. f4 {[%clk 0:01:44]}  Qb6 {[%clk 0:01:45]} 24. b3 {[%clk 0:01:39]}  d4 {[%clk 0:01:31]} 25. Nd1 {[%clk 0:01:38]}  Qa5 {[%clk 0:01:20]} 26. exd4 {[%clk 0:01:31]}  Qxa2 {[%clk 0:01:13]} 27. Be4 {[%clk 0:01:17]}  Nf8 {[%clk 0:00:58]} 28. Bxb7 {[%clk 0:01:07]}  Bb5 {[%clk 0:00:59]} 29. Qc3 {[%clk 0:00:55]}  Nd7 {[%clk 0:00:40]} 30. Ne3 {[%clk 0:00:39]}  Qa3 {[%clk 0:00:37]} 31. Ra1 {[%clk 0:00:31]}  Qe7 {[%clk 0:00:27]} 32. Bxa6 {[%clk 0:00:31]}  Bxa6 {[%clk 0:00:25]} 33. Rxa6 {[%clk 0:00:32]}  Bh6 {[%clk 0:00:24]} 34. g3 {[%clk 0:00:31]}  Nf8 {[%clk 0:00:24]} 35. Ng4 {[%clk 0:00:29]}  Bg7 {[%clk 0:00:24]} 36. Qc5 {[%clk 0:00:29]}  Qb7 {[%clk 0:00:23]} 37. Rb6 {[%clk 0:00:28]}  Qf3 {[%clk 0:00:22]} 38. Nf6+ {[%clk 0:00:24]}  Bxf6 {[%clk 0:00:15]} 39. exf6 {[%clk 0:00:25]}  Qd1+ {[%clk 0:00:14]} 40. Kf2 {[%clk 0:00:24]}  Qd2+ {[%clk 0:00:14]} 41. Kf3 {[%clk 0:00:24]}  Qd3+ {[%clk 0:00:11]} 42. Kg4 {[%clk 0:00:24]}  Qe2+ {[%clk 0:00:06]} 43. Kh3 {[%clk 0:00:23]}  Qf1+ {[%clk 0:00:02]} 44. Kh4 {[%clk 0:00:23]}  Qe2 {[%clk 0:00:01]} 45. h3 {[%clk 0:00:22]}  g5+ {[%clk 0:00:01]} 46. Qxg5+ {[%clk 0:00:22]}  Ng6+ {[%clk 0:00:01]} 47. Qxg6+ {[%clk 0:00:21]}  fxg6 {[%clk 0:00:02]} 48. g4 {[%clk 0:00:15]}  Qf2+ {[%clk 0:00:02]} 49. Kg5 {[%clk 0:00:15]}  Kf7 {[%clk 0:00:02]} 50. Rb7+ {[%clk 0:00:14]}  Ke8 {[%clk 0:00:02]} 51. Kxg6 {[%clk 0:00:13]}  Qxf4 {[%clk 0:00:02]} 52. Re7+ {[%clk 0:00:05]}  Kf8 {[%clk 0:00:03]} 53. Rxe6 {[%clk 0:00:06]}  Qxd4 {[%clk 0:00:03]} 54. Re7 {[%clk 0:00:05]}  Qd3+ {[%clk 0:00:03]} 55. Kg5 {[%clk 0:00:04]}  Qd2+ {[%clk 0:00:03]} 56. Kf5 {[%clk 0:00:04]}  Qd3+ {[%clk 0:00:03]} 57. Re4 {[%clk 0:00:03]}  Qxh3 {[%clk 0:00:03]} 58. Re7 {[%clk 0:00:03]}  Qf3+ {[%clk 0:00:03]} 59. Kg5 {[%clk 0:00:03]}  Qd5+ {[%clk 0:00:03]} 60. Kg6 {[%clk 0:00:04]}  Qd2 {[%clk 0:00:04]} 61. g5 {[%clk 0:00:04]}  Qd3+ {[%clk 0:00:04]} 62. Kh6 {[%clk 0:00:04]}  Qf5 {[%clk 0:00:02]} 63. b4 {[%clk 0:00:03]}  Qc2 {[%clk 0:00:02]} 64. g6 {[%clk 0:00:02]}  Qh2+ {[%clk 0:00:02]} 65. Kg5 {[%clk 0:00:03]}  Qg3+ {[%clk 0:00:02]} 66. Kf5 {[%clk 0:00:04]}  Qf3+ {[%clk 0:00:03]} 67. Kg5 {[%clk 0:00:05]}  Qg3+ {[%clk 0:00:03]} 68. Kf5 {[%clk 0:00:05]}  Qh3+ {[%clk 0:00:04]} 69. Kg5 {[%clk 0:00:05]}  Qg2+ {[%clk 0:00:04]} 70. Kf5 {[%clk 0:00:06]}  Qe2 {[%clk 0:00:04]} 71. g7+ {[%clk 0:00:05]}  Kg8 {[%clk 0:00:04]} 72. Rxe2 {[%clk 0:00:06]} 1-0


[Site "https://www.chess.com"]

[Event "Titled Tuesday Blitz May 31 Late 2022"]
[White "Taichman, Ori"]
[Black "Abdrlauf, Elham"]
[WhiteFideId "2804069"]
[BlackFideId "1533533"]
[WhiteElo "2227"]
[BlackElo "2371"]
[Result "1-0"]
[Round "02"]
[TimeControl "180+1"]
[Date "2022.05.31"]
[WhiteClock "0:00:27"]
[BlackClock "0:00:20"]

1. e4 {[%clk 0:03:00]}  e5 {[%clk 0:02:59]} 2. d4 {[%clk 0:02:59]}  exd4 {[%clk 0:02:59]} 3. Qxd4 {[%clk 0:03:00]}  Nc6 {[%clk 0:02:59]} 4. Qe3 {[%clk 0:02:58]}  Nf6 {[%clk 0:02:58]} 5. Nc3 {[%clk 0:02:52]}  Bb4 {[%clk 0:02:58]} 6. Bd2 {[%clk 0:02:52]}  O-O {[%clk 0:02:57]} 7. O-O-O {[%clk 0:02:52]}  Re8 {[%clk 0:02:50]} 8. Qg3 {[%clk 0:02:53]}  d6 {[%clk 0:02:50]} 9. f3 {[%clk 0:02:52]}  Be6 {[%clk 0:02:45]} 10. Nge2 {[%clk 0:02:50]}  Ne5 {[%clk 0:02:41]} 11. Bg5 {[%clk 0:02:49]}  h6 {[%clk 0:02:08]} 12. Bxh6 {[%clk 0:02:34]}  Nh5 {[%clk 0:02:00]} 13. Qg5 {[%clk 0:02:34]}  Qf6 {[%clk 0:01:44]} 14. Qxf6 {[%clk 0:02:30]}  Nxf6 {[%clk 0:01:45]} 15. Bg5 {[%clk 0:02:29]}  Nfd7 {[%clk 0:01:45]} 16. h3 {[%clk 0:02:10]}  f6 {[%clk 0:01:29]} 17. Bh4 {[%clk 0:02:04]}  a5 {[%clk 0:01:26]} 18. Bf2 {[%clk 0:01:55]}  Bc5 {[%clk 0:01:15]} 19. Bxc5 {[%clk 0:01:52]}  Nxc5 {[%clk 0:01:16]} 20. Nd4 {[%clk 0:01:44]}  Bf7 {[%clk 0:01:14]} 21. a3 {[%clk 0:01:37]}  Red8 {[%clk 0:01:11]} 22. Nd5 {[%clk 0:01:22]}  Bxd5 {[%clk 0:01:06]} 23. exd5 {[%clk 0:01:23]}  Re8 {[%clk 0:01:06]} 24. f4 {[%clk 0:01:22]}  Ng6 {[%clk 0:01:07]} 25. f5 {[%clk 0:01:15]}  Ne5 {[%clk 0:00:59]} 26. Ne6 {[%clk 0:01:14]}  Re7 {[%clk 0:01:00]} 27. g4 {[%clk 0:01:13]}  Ne4 {[%clk 0:00:55]} 28. Re1 {[%clk 0:01:05]}  Ng5 {[%clk 0:00:42]} 29. Bg2 {[%clk 0:01:03]}  Nxe6 {[%clk 0:00:36]} 30. dxe6 {[%clk 0:01:02]}  c6 {[%clk 0:00:36]} 31. Rhf1 {[%clk 0:00:35]}  g5 {[%clk 0:00:26]} 32. Kd2 {[%clk 0:00:18]}  Kg7 {[%clk 0:00:25]} 33. Kc3 {[%clk 0:00:18]}  d5 {[%clk 0:00:20]} 34. Rxe5 {[%clk 0:00:18]}  fxe5 {[%clk 0:00:21]} 35. f6+ {[%clk 0:00:19]}  Kf8 {[%clk 0:00:21]} 36. fxe7+ {[%clk 0:00:19]}  Kxe7 {[%clk 0:00:22]} 37. Rf5 {[%clk 0:00:19]}  e4 {[%clk 0:00:21]} 38. Rxg5 {[%clk 0:00:18]}  Kxe6 {[%clk 0:00:22]} 39. Kd4 {[%clk 0:00:17]}  Rf8 {[%clk 0:00:22]} 40. Rf5 {[%clk 0:00:18]}  Rxf5 {[%clk 0:00:21]} 41. gxf5+ {[%clk 0:00:19]}  Kxf5 {[%clk 0:00:22]} 42. c4 {[%clk 0:00:19]}  Kf4 {[%clk 0:00:06]} 43. cxd5 {[%clk 0:00:19]}  e3 {[%clk 0:00:06]} 44. Kd3 {[%clk 0:00:16]}  cxd5 {[%clk 0:00:02]} 45. Bxd5 {[%clk 0:00:16]}  b5 {[%clk 0:00:03]} 46. b4 {[%clk 0:00:16]}  axb4 {[%clk 0:00:03]} 47. axb4 {[%clk 0:00:17]}  e2 {[%clk 0:00:03]} 48. Kxe2 {[%clk 0:00:17]}  Kg3 {[%clk 0:00:04]} 49. Bc6 {[%clk 0:00:18]}  Kxh3 {[%clk 0:00:04]} 50. Bxb5 {[%clk 0:00:19]}  Kg4 {[%clk 0:00:05]} 51. Bc6 {[%clk 0:00:19]}  Kf5 {[%clk 0:00:06]} 52. b5 {[%clk 0:00:20]}  Ke5 {[%clk 0:00:06]} 53. Kd3 {[%clk 0:00:21]}  Kd6 {[%clk 0:00:07]} 54. Kc4 {[%clk 0:00:21]}  Kc7 {[%clk 0:00:08]} 55. Kc5 {[%clk 0:00:22]}  Kb8 {[%clk 0:00:09]} 56. b6 {[%clk 0:00:22]}  Kc8 {[%clk 0:00:10]} 57. Kb5 {[%clk 0:00:23]}  Kb8 {[%clk 0:00:11]} 58. Ka6 {[%clk 0:00:24]}  Kc8 {[%clk 0:00:12]} 59. Ka7 {[%clk 0:00:24]}  Kd8 {[%clk 0:00:13]} 60. b7 {[%clk 0:00:25]}  Ke7 {[%clk 0:00:14]} 61. b8=Q {[%clk 0:00:26]}  Ke6 {[%clk 0:00:15]} 62. Qb5 {[%clk 0:00:26]}  Kd6 {[%clk 0:00:15]} 63. Qd5+ {[%clk 0:00:26]}  Ke7 {[%clk 0:00:16]} 64. Qe5+ {[%clk 0:00:26]}  Kf8 {[%clk 0:00:17]} 65. Qf6+ {[%clk 0:00:26]}  Kg8 {[%clk 0:00:18]} 66. Qe7 {[%clk 0:00:26]}  Kh8 {[%clk 0:00:19]} 67. Be4 {[%clk 0:00:26]}  Kg8 {[%clk 0:00:20]} 68. Ka8 {[%clk 0:00:27]} 1-0


[Site "https://www.chess.com"]

[Event "Titled Tuesday Blitz May 31 Late 2022"]
[White "Tregubov, Pavel V."]
[Black "Swiercz, Dariusz"]
[WhiteFideId "4115341"]
[BlackFideId "1126881"]
[WhiteElo "2341"]
[BlackElo "2627"]
[Result "1/2-1/2"]
[Round "02"]
[TimeControl "180+1"]
[Date "2022.05.31"]
[WhiteClock "0:00:05"]
[BlackClock "0:00:08"]

1. e4 {[%clk 0:03:00]}  e6 {[%clk 0:03:00]} 2. d4 {[%clk 0:03:00]}  d5 {[%clk 0:03:00]} 3. exd5 {[%clk 0:03:00]}  exd5 {[%clk 0:03:01]} 4. Nf3 {[%clk 0:03:01]}  Nf6 {[%clk 0:03:01]} 5. Bd3 {[%clk 0:03:01]}  Bd6 {[%clk 0:03:02]} 6. Qe2+ {[%clk 0:03:01]}  Be6 {[%clk 0:03:02]} 7. c4 {[%clk 0:02:59]}  O-O {[%clk 0:02:53]} 8. c5 {[%clk 0:02:57]}  Be7 {[%clk 0:02:53]} 9. O-O {[%clk 0:02:54]}  Nc6 {[%clk 0:02:51]} 10. a3 {[%clk 0:02:42]}  Bg4 {[%clk 0:02:49]} 11. Be3 {[%clk 0:02:38]}  Re8 {[%clk 0:02:50]} 12. h3 {[%clk 0:02:34]}  Bh5 {[%clk 0:02:49]} 13. b4 {[%clk 0:02:22]}  Bf8 {[%clk 0:02:49]} 14. g4 {[%clk 0:02:22]}  Bg6 {[%clk 0:02:48]} 15. Bxg6 {[%clk 0:02:21]}  hxg6 {[%clk 0:02:48]} 16. Nc3 {[%clk 0:02:18]}  a6 {[%clk 0:02:45]} 17. Qc2 {[%clk 0:02:08]}  Ne4 {[%clk 0:02:38]} 18. Rfe1 {[%clk 0:02:05]}  Qd7 {[%clk 0:02:25]} 19. Rad1 {[%clk 0:01:55]}  Re6 {[%clk 0:01:53]} 20. Nxe4 {[%clk 0:01:52]}  Rxe4 {[%clk 0:01:51]} 21. Ng5 {[%clk 0:01:47]}  Re7 {[%clk 0:01:41]} 22. Nf3 {[%clk 0:01:23]}  Rae8 {[%clk 0:01:40]} 23. Qd2 {[%clk 0:01:23]}  Re4 {[%clk 0:00:55]} 24. Ng5 {[%clk 0:01:21]}  R4e7 {[%clk 0:00:56]} 25. Nf3 {[%clk 0:01:18]}  f5 {[%clk 0:00:33]} 26. Nh2 {[%clk 0:00:40]}  Re4 {[%clk 0:00:29]} 27. f3 {[%clk 0:00:37]}  R4e6 {[%clk 0:00:29]} 28. Bf2 {[%clk 0:00:34]}  Rxe1+ {[%clk 0:00:22]} 29. Rxe1 {[%clk 0:00:33]}  Rxe1+ {[%clk 0:00:23]} 30. Qxe1 {[%clk 0:00:33]}  Be7 {[%clk 0:00:24]} 31. f4 {[%clk 0:00:20]}  Bf6 {[%clk 0:00:22]} 32. Qd2 {[%clk 0:00:20]}  Qe6 {[%clk 0:00:16]} 33. g5 {[%clk 0:00:20]}  Bd8 {[%clk 0:00:16]} 34. Nf3 {[%clk 0:00:21]}  Qe4 {[%clk 0:00:17]} 35. Ne5 {[%clk 0:00:21]}  Nxe5 {[%clk 0:00:16]} 36. dxe5 {[%clk 0:00:21]}  c6 {[%clk 0:00:17]} 37. Qd4 {[%clk 0:00:21]}  Qf3 {[%clk 0:00:15]} 38. Qe3 {[%clk 0:00:19]}  Qd1+ {[%clk 0:00:13]} 39. Kg2 {[%clk 0:00:19]}  Qc2 {[%clk 0:00:12]} 40. Qd4 {[%clk 0:00:17]}  Kf8 {[%clk 0:00:10]} 41. Qe3 {[%clk 0:00:17]}  Ke7 {[%clk 0:00:10]} 42. h4 {[%clk 0:00:17]}  Ke6 {[%clk 0:00:09]} 43. Qf3 {[%clk 0:00:17]}  Qe4 {[%clk 0:00:07]} 44. Kg3 {[%clk 0:00:16]}  a5 {[%clk 0:00:06]} 45. Qxe4 {[%clk 0:00:10]}  dxe4 {[%clk 0:00:06]} 46. Be1 {[%clk 0:00:09]}  a4 {[%clk 0:00:06]} 47. Bc3 {[%clk 0:00:08]}  b6 {[%clk 0:00:05]} 48. Kf2 {[%clk 0:00:06]}  bxc5 {[%clk 0:00:04]} 49. bxc5 {[%clk 0:00:06]}  Be7 {[%clk 0:00:05]} 50. Bd4 {[%clk 0:00:04]}  Kd5 {[%clk 0:00:06]} 51. Ke3 {[%clk 0:00:04]}  Bxc5 {[%clk 0:00:05]} 52. Bxc5 {[%clk 0:00:04]}  Kxc5 {[%clk 0:00:06]} 53. Kd2 {[%clk 0:00:02]}  Kd5 {[%clk 0:00:07]} 54. Ke3 {[%clk 0:00:02]}  c5 {[%clk 0:00:07]} 55. Kd2 {[%clk 0:00:03]}  c4 {[%clk 0:00:08]} 56. Ke3 {[%clk 0:00:03]}  c3 {[%clk 0:00:08]} 57. Ke2 {[%clk 0:00:03]}  Kc5 {[%clk 0:00:08]} 58. Ke3 {[%clk 0:00:03]}  Kc6 {[%clk 0:00:08]} 59. Ke2 {[%clk 0:00:04]}  Kd5 {[%clk 0:00:09]} 60. Ke3 {[%clk 0:00:04]}  Kc4 {[%clk 0:00:05]} 61. e6 {[%clk 0:00:04]}  c2 {[%clk 0:00:05]} 62. Kd2 {[%clk 0:00:03]}  Kb3 {[%clk 0:00:06]} 63. Kc1 {[%clk 0:00:03]}  e3 {[%clk 0:00:06]} 64. e7 {[%clk 0:00:04]}  e2 {[%clk 0:00:07]} 65. e8=Q {[%clk 0:00:04]}  Ka2 {[%clk 0:00:07]} 66. Qxe2 {[%clk 0:00:04]}  Ka1 {[%clk 0:00:08]} 67. Qxc2 {[%clk 0:00:05]} 1/2-1/2


[Site "https://www.chess.com"]